[Event "Portuguese-ch U14-20 2022"]
[Site "Fatima"]
[Date "2022.04.12"]
[Round "4.27"]
[White "Afonso, Joao Pedro"]
[Black "Lachever, Diogo Freire"]
[Result "1-0"]
[ECO "B03"]
[WhiteElo "1501"]
[BlackElo "1182"]
[Annotator "NA RC"]
[PlyCount "69"]
[EventDate "2022.04.10"]
[EventType "swiss"]
[EventCountry "POR"]
[SourceTitle "playchess.com"]
[Source "ChessBase"]
[SourceQuality "1"]
[TimeControl "5400+30"]

1. e4 {[%emt 0:00:03]} Nf6 {[%emt 0:01:01]} 2. e5 {[%emt 0:00:11]} Nd5 {[%emt 0:01:09]} 3. d4 {[%emt 0:00:05]} d6 {[%emt 0:00:43]} 4. c4 {[%emt 0:00:28]} Nb6 {[%emt 0:00:26]} 5. exd6 {[%emt 0:00:05]} exd6 {[%emt 0:00:11]} 6. Nf3 {[%emt 0:00:14]} Be7 {[%emt 0:01:06]} 7. Bd3 {[%emt 0:00:30]} Bg4 {[%emt 0:00:29]} 8. Be3 {[%emt 0:05:07]} Nc6 {[%emt 0:01:21]} 9. Nbd2 {[%emt 0:01:24]} Bf6 {[%emt 0:00:59]} 10. Qb3 {[%emt 0:09:17]} Qd7 {[%emt 0:03:24]} 11. O-O {[%emt 0:07:00]} O-O 12. d5 {[%emt 0:07:37]} Ne5 {[%emt 0:04:11]} 13. Nxe5 {[%emt 0:00:31]} Bxe5 {[%emt 0:01:55]} 14. f4 {[%emt 0:01:00]} Bf6 {[%emt 0:00:37]} 15. Qc2 {[%emt 0:24:55]} g6 {[%emt 0:06:32]} 16. f5 {[%emt 0:03:38]} Bxf5 {[%emt 0:01:00]} 17. Bxf5 {[%emt 0:00:17]} gxf5 {[%emt 0:00:10]} 18. Rxf5 {[%emt 0:01:27]} Be5 {[%emt 0:05:55]} 19. Bh6 {[%emt 0:04:47]} Rfe8 {[%emt 0:01:08]} 20. Raf1 {[%emt 0:00:33]} f6 {[%emt 0:01:01]} 21. Ne4 {[%emt 0:04:28]} Bd4+ {[%emt 0:02:02]} 22. Kh1 {[%emt 0:00:31]} Qf7 {[%emt 0:01:09]} 23. Nxf6+ {[%emt 0:01:09]} Bxf6 {[%emt 0:00:11]} 24. Qf2 {[%emt 0:01:27]} Rf8 {[%emt 0:01:43]} 25. Bxf8 {[%emt 0:05:24]} Rxf8 {[%emt 0:00:09]} 26. Rxf6 {[%emt 0:00:13]} Qxf6 {[%emt 0:00:10]} 27. Qxf6 {[%emt 0:00:02]} Rxf6 28. Rxf6 {[%emt 0:00:01]} Nxc4 {[%emt 0:00:15]} 29. Rf2 {[%emt 0:00:19]} Ne3 {[%emt 0:00:52]} 30. Rd2 {[%emt 0:00:48]} Nc4 {[%emt 0:00:42]} 31. Rc2 {[%emt 0:00:27]} Ne3 {[%emt 0:00:14]} 32. Rxc7 {[%emt 0:00:06]} Nxd5 {[%emt 0:00:06]} 33. Rxb7 {[%emt 0:00:08]} Ne3 {[%emt 0:00:18]} 34. Rxa7 {[%emt 0:00:17]} d5 {[%emt 0:00:11]} 35. Rd7 {[%emt 0:00:07]} 1-0

[Event "Portuguese-ch U14-20 2022"]
[Site "Fatima"]
[Date "2022.04.12"]
[Round "4.28"]
[White "Marques, Afonso Mendes Pereir"]
[Black "Korotkyi, Daniyil"]
[Result "0-1"]
[ECO "B58"]
[WhiteElo "1550"]
[BlackElo "1726"]
[Annotator "NA RC"]
[PlyCount "110"]
[EventDate "2022.04.10"]
[EventType "swiss"]
[EventCountry "POR"]
[SourceTitle "playchess.com"]
[Source "ChessBase"]
[SourceQuality "1"]
[TimeControl "5400+30"]

1. e4 {[%emt 0:00:03]} c5 {[%emt 0:02:56]} 2. Nf3 {[%emt 0:00:36]} Nc6 {[%emt 0:01:51]} 3. d4 {[%emt 0:00:22]} cxd4 {[%emt 0:00:45]} 4. Nxd4 {[%emt 0:00:31]} d6 {[%emt 0:02:01]} 5. Nc3 {[%emt 0:03:50]} Nf6 {[%emt 0:02:32]} 6. Be2 {[%emt 0:04:19]} g6 {[%emt 0:02:37]} 7. Be3 {[%emt 0:01:10]} Bg7 {[%emt 0:00:31]} 8. h3 {[%emt 0:05:40]} O-O {[%emt 0:01:55]} 9. Qd2 {[%emt 0:00:53]} a6 {[%emt 0:01:09]} 10. O-O-O {[%emt 0:01:54]} Bd7 {[%emt 0:01:30]} 11. g4 {[%emt 0:04:58]} Nxd4 {[%emt 0:02:49]} 12. Bxd4 {[%emt 0:00:18]} Qa5 {[%emt 0:20:34]} 13. Kb1 {[%emt 0:15:27]} Bc6 {[%emt 0:14:40]} 14. f3 {[%emt 0:09:59]} Nd7 {[%emt 0:07:23]} 15. Nd5 {[%emt 0:06:05]} Qd8 {[%emt 0:00:55]} 16. Bxg7 {[%emt 0:03:38]} Kxg7 {[%emt 0:00:10]} 17. h4 {[%emt 0:00:41]} Bxd5 {[%emt 0:00:50]} 18. Qxd5 {[%emt 0:01:01]} Qb6 {[%emt 0:03:39]} 19. h5 {[%emt 0:03:00]} Nf6 {[%emt 0:02:28]} 20. Qd2 {[%emt 0:00:39]} Rh8 {[%emt 0:04:38]} 21. Rh2 {[%emt 0:06:59]} h6 {[%emt 0:04:13]} 22. hxg6 {[%emt 0:10:07]} fxg6 {[%emt 0:00:16]} 23. Rdh1 {[%emt 0:01:05]} g5 {[%emt 0:00:44]} 24. Bc4 {[%emt 0:02:51]} Qc5 {[%emt 0:01:16]} 25. Be6 {[%emt 0:01:01]} Qe5 {[%emt 0:00:57]} 26. Bf5 {[%emt 0:00:15]} Qf4 {[%emt 0:06:32]} 27. Qxf4 {[%emt 0:04:17]} gxf4 {[%emt 0:00:08]} 28. Kc1 {[%emt 0:00:39]} Rad8 {[%emt 0:01:51]} 29. Be6 {[%emt 0:00:26]} Nd7 {[%emt 0:01:08]} 30. Bxd7 {[%emt 0:00:13]} Rxd7 {[%emt 0:00:11]} 31. g5 {[%emt 0:00:03]} h5 {[%emt 0:00:47]} 32. Rxh5 {[%emt 0:00:46]} Rxh5 {[%emt 0:00:08]} 33. Rxh5 {[%emt 0:00:03]} Kg6 {[%emt 0:00:21]} 34. Rh4 {[%emt 0:01:55]} e5 {[%emt 0:00:08]} 35. Rh2 {[%emt 0:02:05]} Kxg5 {[%emt 0:00:20]} 36. c4 {[%emt 0:00:48]} Rc7 {[%emt 0:01:07]} 37. b3 {[%emt 0:01:13]} b5 {[%emt 0:00:23]} 38. Rc2 {[%emt 0:00:06]} bxc4 {[%emt 0:00:20]} 39. bxc4 {[%emt 0:00:31]} Kh4 {[%emt 0:00:14]} 40. Kd2 {[%emt 0:01:29]} Kg3 {[%emt 0:00:14]} 41. Rc3 {[%emt 0:00:57]} Kf2 {[%emt 0:02:47]} 42. Kc2 {[%emt 0:02:28]} Rb7 {[%emt 0:01:42]} 43. Ra3 {[%emt 0:02:51]} Rb6 {[%emt 0:00:29]} 44. Rd3 {[%emt 0:00:50]} Ke2 {[%emt 0:02:11]} 45. Ra3 {[%emt 0:00:25]} Rc6 {[%emt 0:00:53]} 46. Rc3 {[%emt 0:00:09]} Rc7 {[%emt 0:01:07]} 47. Kb3 {[%emt 0:00:28]} Rh7 {[%emt 0:00:53]} 48. c5 {[%emt 0:01:42]} dxc5 {[%emt 0:00:31]} 49. Rxc5 {[%emt 0:00:01]} Kxf3 50. Rxe5 {[%emt 0:00:03]} Ke3 {[%emt 0:01:01]} 51. Kc2 {[%emt 0:00:56]} f3 {[%emt 0:01:20]} 52. Rd5 {[%emt 0:00:25]} Rc7+ {[%emt 0:01:19]} 53. Kd1 {[%emt 0:00:27]} f2 {[%emt 0:00:21]} 54. Rf5 {[%emt 0:00:01]} Rd7+ {[%emt 0:00:23]} 55. Kc1 {[%emt 0:00:11]} Ke2 {[%emt 0:00:20]} 0-1

[Event "Portuguese-ch U14-20 2022"]
[Site "Fatima"]
[Date "2022.04.12"]
[Round "4.29"]
[White "Pacetti Terra, Nicolas"]
[Black "Torres Rodero, Francisco"]
[Result "1/2-1/2"]
[ECO "C50"]
[WhiteElo "1756"]
[BlackElo "2048"]
[Annotator "NA RC"]
[PlyCount "89"]
[EventDate "2022.04.10"]
[EventType "swiss"]
[EventCountry "POR"]
[SourceTitle "playchess.com"]
[Source "ChessBase"]
[SourceQuality "1"]
[TimeControl "5400+30"]

1. e4 {[%emt 0:00:03]} e5 {[%emt 0:00:27]} 2. Nf3 {[%emt 0:00:22]} Nc6 {[%emt 0:00:07]} 3. Bc4 {[%emt 0:00:06]} Nf6 {[%emt 0:00:17]} 4. d3 {[%emt 0:00:14]} Bc5 {[%emt 0:00:18]} 5. c3 {[%emt 0:00:10]} d6 {[%emt 0:00:31]} 6. Nbd2 {[%emt 0:00:17]} O-O {[%emt 0:00:36]} 7. O-O {[%emt 0:00:10]} Be6 {[%emt 0:01:26]} 8. Bb3 {[%emt 0:02:09]} d5 {[%emt 0:05:46]} 9. exd5 {[%emt 0:01:19]} Bxd5 {[%emt 0:03:56]} 10. Bc2 {[%emt 0:26:09]} Re8 {[%emt 0:05:56]} 11. Nb3 {[%emt 0:19:16]} Bd6 {[%emt 0:04:50]} 12. Bg5 {[%emt 0:04:23]} h6 {[%emt 0:01:37]} 13. Bh4 {[%emt 0:00:08]} e4 {[%emt 0:05:56]} 14. dxe4 {[%emt 0:06:48]} Bxe4 {[%emt 0:00:37]} 15. Re1 {[%emt 0:03:26]} Bxc2 {[%emt 0:08:23]} 16. Qxc2 {[%emt 0:00:08]} Rxe1+ {[%emt 0:03:54]} 17. Rxe1 {[%emt 0:00:20]} Be7 {[%emt 0:05:55]} 18. Nbd4 {[%emt 0:02:59]} Nxd4 {[%emt 0:04:35]} 19. Nxd4 {[%emt 0:00:09]} Nd5 {[%emt 0:02:05]} 20. Bxe7 {[%emt 0:06:16]} Nxe7 {[%emt 0:01:30]} 21. Qe4 {[%emt 0:00:44]} Nc6 {[%emt 0:03:19]} 22. Nxc6 {[%emt 0:06:24]} bxc6 {[%emt 0:00:10]} 23. Qe7 {[%emt 0:02:46]} a6 {[%emt 0:11:49]} 24. f3 {[%emt 0:00:37]} Qxe7 {[%emt 0:04:18]} 25. Rxe7 {[%emt 0:00:08]} Rd8 {[%emt 0:00:07]} 26. Kf2 {[%emt 0:00:05]} Rd2+ {[%emt 0:00:23]} 27. Re2 {[%emt 0:00:07]} Rd5 {[%emt 0:00:55]} 28. Ke3 Kf8 {[%emt 0:01:16]} 29. Rd2 {[%emt 0:01:20]} Re5+ {[%emt 0:01:26]} 30. Kd3 {[%emt 0:00:15]} Rd5+ {[%emt 0:01:32]} 31. Kc2 {[%emt 0:00:08]} Re5 {[%emt 0:00:22]} 32. c4 {[%emt 0:00:30]} Ke7 {[%emt 0:02:29]} 33. Kc3 {[%emt 0:01:25]} c5 {[%emt 0:02:04]} 34. Kb3 {[%emt 0:01:22]} Re6 {[%emt 0:03:04]} 35. Ka4 {[%emt 0:00:33]} Rb6 {[%emt 0:00:55]} 36. b3 {[%emt 0:00:30]} g5 {[%emt 0:02:10]} 37. Ka5 {[%emt 0:00:30]} Rc6 {[%emt 0:00:28]} 38. Rd5 {[%emt 0:05:58]} Ke8 {[%emt 0:01:40]} 39. h4 {[%emt 0:00:27]} gxh4 {[%emt 0:01:28]} 40. f4 {[%emt 0:00:27]} Ke7 {[%emt 0:03:26]} 41. f5 {[%emt 0:00:20]} Kf6 {[%emt 0:00:56]} 42. a3 {[%emt 0:03:08]} Kg5 {[%emt 0:02:20]} 43. Re5 {[%emt 0:03:07]} Kf6 {[%emt 0:02:48]} 44. Rd5 {[%emt 0:00:49]} Kg5 {[%emt 0:00:11]} 45. Re5 {[%emt 0:02:11]} 1/2-1/2

[Event "Portuguese-ch U14-20 2022"]
[Site "Fatima"]
[Date "2022.04.12"]
[Round "4.30"]
[White "Gaspar, Bernardo"]
[Black "Marques Serra, David"]
[Result "1-0"]
[ECO "A01"]
[WhiteElo "1365"]
[BlackElo "1734"]
[Annotator "NA RC"]
[PlyCount "77"]
[EventDate "2022.04.10"]
[EventType "swiss"]
[EventCountry "POR"]
[SourceTitle "playchess.com"]
[Source "ChessBase"]
[SourceQuality "1"]
[TimeControl "5400+30"]

1. b3 e5 2. Bb2 Nc6 3. e3 d5 4. Bb5 Qd6 5. Nf3 Bg4 6. Bxe5 Bxf3 7. Bxd6 Bxd1 8. Bxc6+ bxc6 9. Bxf8 Kxf8 10. Kxd1 Nf6 11. f3 a5 12. Nc3 g6 13. Re1 Re8 14. e4 d4 15. Na4 Nd7 16. Nb2 Nb6 17. Ke2 Ke7 18. Kd3 c5 19. Nc4 Nxc4 20. Kxc4 Kd6 21. e5+ Kc6 22. Re4 Re6 23. a3 Rhe8 24. f4 f6 25. Rae1 f5 26. R4e2 Rb8 27. Rb1 Ra8 28. b4 axb4 29. axb4 Ra4 30. c3 dxc3 31. dxc3 cxb4 32. Rxb4 Ra8 33. Rd2 Rae8 34. Ra4 R6e7 35. Ra6+ Kb7 36. Ra5 Kc6 37. Rc5+ Kb6 38. Rb2+ Ka6 39. Rcb5 1-0

[Event "Portuguese-ch U14-20 2022"]
[Site "Fatima"]
[Date "2022.04.12"]
[Round "4.31"]
[White "Almeida, Joao Pedro Dias"]
[Black "Reis, Pedro"]
[Result "1-0"]
[ECO "D02"]
[WhiteElo "1508"]
[BlackElo "1211"]
[Annotator "NA RC"]
[PlyCount "81"]
[EventDate "2022.04.10"]
[EventType "swiss"]
[EventCountry "POR"]
[SourceTitle "playchess.com"]
[Source "ChessBase"]
[SourceQuality "1"]
[TimeControl "5400+30"]

1. d4 {[%emt 0:00:01]} d5 {[%emt 0:00:05]} 2. Nf3 {[%emt 0:00:04]} Nf6 {[%emt 0:00:02]} 3. g3 {[%emt 0:00:04]} Bf5 {[%emt 0:01:20]} 4. Bg2 {[%emt 0:01:20]} e6 {[%emt 0:00:27]} 5. c4 {[%emt 0:01:09]} Bd6 {[%emt 0:01:13]} 6. c5 {[%emt 0:01:09]} Be7 {[%emt 0:00:19]} 7. Nc3 {[%emt 0:02:16]} O-O {[%emt 0:00:36]} 8. O-O {[%emt 0:00:08]} Nbd7 {[%emt 0:00:24]} 9. Nh4 {[%emt 0:01:54]} Bg6 {[%emt 0:01:19]} 10. Nxg6 {[%emt 0:00:05]} hxg6 {[%emt 0:00:06]} 11. b4 {[%emt 0:02:03]} a5 {[%emt 0:07:11]} 12. b5 {[%emt 0:00:25]} Ne8 {[%emt 0:01:18]} 13. a4 {[%emt 0:01:21]} f5 {[%emt 0:02:02]} 14. e4 {[%emt 0:11:04]} c6 {[%emt 0:13:20]} 15. exd5 {[%emt 0:02:14]} exd5 {[%emt 0:00:26]} 16. bxc6 {[%emt 0:01:04]} bxc6 {[%emt 0:00:12]} 17. Nxd5 {[%emt 0:03:09]} cxd5 {[%emt 0:01:17]} 18. Bxd5+ {[%emt 0:00:07]} Kh7 {[%emt 0:00:07]} 19. Bxa8 {[%emt 0:00:10]} Qxa8 {[%emt 0:00:12]} 20. Ba3 {[%emt 0:01:17]} Ndf6 {[%emt 0:02:27]} 21. Re1 {[%emt 0:02:26]} Rf7 {[%emt 0:01:10]} 22. Qb3 {[%emt 0:12:31]} Nd5 {[%emt 0:13:57]} 23. c6 {[%emt 0:11:03]} Qxc6 {[%emt 0:08:55]} 24. Bxe7 {[%emt 0:00:06]} Rxe7 {[%emt 0:00:22]} 25. Rxe7 {[%emt 0:00:02]} Nxe7 {[%emt 0:00:02]} 26. Re1 {[%emt 0:00:11]} Ng8 {[%emt 0:02:07]} 27. Qb5 {[%emt 0:03:42]} Qxb5 {[%emt 0:03:32]} 28. axb5 {[%emt 0:00:01]} Nd6 {[%emt 0:02:04]} 29. b6 {[%emt 0:00:05]} Nf6 {[%emt 0:00:13]} 30. Re6 {[%emt 0:00:12]} Nb7 {[%emt 0:00:23]} 31. Re7 {[%emt 0:00:06]} Nd6 {[%emt 0:00:06]} 32. b7 {[%emt 0:00:10]} Nxb7 {[%emt 0:00:01]} 33. Rxb7 {[%emt 0:00:06]} g5 {[%emt 0:07:20]} 34. Rb5 {[%emt 0:00:14]} Kg6 {[%emt 0:00:13]} 35. Rxa5 {[%emt 0:00:04]} Kf7 {[%emt 0:00:13]} 36. Rxf5 {[%emt 0:00:19]} g4 {[%emt 0:00:14]} 37. Kf1 {[%emt 0:00:22]} Ke6 {[%emt 0:00:05]} 38. Rxf6+ {[%emt 0:00:40]} gxf6 {[%emt 0:00:09]} 39. Ke2 {[%emt 0:00:04]} Kd5 {[%emt 0:01:27]} 40. Kd3 {[%emt 0:01:03]} f5 {[%emt 0:00:38]} 41. Ke3 {[%emt 0:00:07]} 1-0

[Event "Portuguese-ch U14-20 2022"]
[Site "Fatima"]
[Date "2022.04.12"]
[Round "4.32"]
[White "Azevedo Junior, Joao Nunes"]
[Black "Bento, David"]
[Result "1-0"]
[ECO "B20"]
[WhiteElo "1831"]
[BlackElo "1282"]
[Annotator "NA RC"]
[PlyCount "73"]
[EventDate "2022.04.10"]
[EventType "swiss"]
[EventCountry "POR"]
[SourceTitle "playchess.com"]
[Source "ChessBase"]
[SourceQuality "1"]
[TimeControl "5400+30"]

1. e4 {[%emt 0:01:08]} c5 {[%emt 0:00:16]} 2. g3 {[%emt 0:00:56]} Nc6 {[%emt 0:00:51]} 3. Bg2 {[%emt 0:00:19]} Nf6 {[%emt 0:00:18]} 4. Ne2 {[%emt 0:00:19]} d5 {[%emt 0:00:20]} 5. exd5 {[%emt 0:00:33]} Nxd5 {[%emt 0:00:06]} 6. Nbc3 {[%emt 0:00:06]} e6 {[%emt 0:01:49]} 7. Nxd5 {[%emt 0:02:02]} exd5 {[%emt 0:00:07]} 8. O-O d4 {[%emt 0:03:44]} 9. Re1 {[%emt 0:13:04]} Be7 {[%emt 0:00:09]} 10. Nf4 {[%emt 0:01:17]} O-O {[%emt 0:01:58]} 11. c4 {[%emt 0:21:04]} d3 {[%emt 0:09:17]} 12. Nd5 {[%emt 0:03:11]} Bf6 {[%emt 0:02:57]} 13. Qb3 {[%emt 0:02:55]} Nd4 {[%emt 0:01:00]} 14. Qxd3 {[%emt 0:05:56]} Bf5 {[%emt 0:00:22]} 15. Be4 {[%emt 0:00:08]} Re8 {[%emt 0:00:09]} 16. f3 {[%emt 0:01:22]} b5 {[%emt 0:13:39]} 17. Kf2 {[%emt 0:06:46]} Nxf3 {[%emt 0:22:00]} 18. Kxf3 {[%emt 0:11:54]} Bd4 {[%emt 0:03:14]} 19. Qf1 {[%emt 0:07:30]} Bxe4+ {[%emt 0:08:06]} 20. Rxe4 {[%emt 0:00:15]} Rxe4 {[%emt 0:02:41]} 21. Kxe4 {[%emt 0:00:04]} Qg5 {[%emt 0:02:12]} 22. d3 {[%emt 0:02:20]} Re8+ {[%emt 0:00:59]} 23. Kf3 {[%emt 0:00:09]} Qh5+ {[%emt 0:00:27]} 24. g4 {[%emt 0:00:55]} Qxh2 {[%emt 0:00:35]} 25. Rb1 {[%emt 0:01:39]} bxc4 {[%emt 0:01:23]} 26. dxc4 {[%emt 0:00:07]} Qc2 {[%emt 0:00:09]} 27. Bf4 {[%emt 0:01:20]} Qe4+ {[%emt 0:01:50]} 28. Kg3 {[%emt 0:00:07]} g5 {[%emt 0:05:52]} 29. Bxg5 {[%emt 0:01:30]} Be5+ {[%emt 0:00:45]} 30. Kh4 {[%emt 0:02:29]} h5 {[%emt 0:01:23]} 31. Qf5 {[%emt 0:01:04]} Qxc4 {[%emt 0:01:37]} 32. Nf6+ {[%emt 0:00:52]} Bxf6 {[%emt 0:00:24]} 33. Bxf6 {[%emt 0:00:07]} Qxg4+ {[%emt 0:02:06]} 34. Qxg4+ {[%emt 0:00:03]} hxg4 {[%emt 0:00:23]} 35. Kxg4 {[%emt 0:00:03]} Re6 {[%emt 0:00:10]} 36. Kf5 {[%emt 0:00:16]} a5 {[%emt 0:00:31]} 37. Rh1 {[%emt 0:01:03]} 1-0

[Event "Portuguese-ch U14-20 2022"]
[Site "Fatima"]
[Date "2022.04.12"]
[Round "4.33"]
[White "Cabral, Francisco Manuel N V"]
[Black "De Medeiros, Sara Soares"]
[Result "0-1"]
[ECO "D37"]
[WhiteElo "1121"]
[BlackElo "1828"]
[Annotator "NA RC"]
[PlyCount "94"]
[EventDate "2022.04.10"]
[EventType "swiss"]
[EventCountry "POR"]
[SourceTitle "playchess.com"]
[Source "ChessBase"]
[SourceQuality "1"]
[TimeControl "5400+30"]

1. d4 d5 2. c4 e6 3. Nc3 Be7 4. Bf4 Nf6 5. Nf3 O-O 6. e3 a6 7. cxd5 exd5 8. Bd3 Re8 9. O-O Nbd7 10. Rc1 c6 11. Qc2 Nf8 12. h3 Ng6 13. Bh2 Bf8 14. Rfe1 Be6 15. Na4 Bd6 16. Bxd6 Qxd6 17. Qc5 Qc7 18. Qb6 Qe7 19. Qc5 Rab8 20. b4 Nd7 21. Qxe7 Nxe7 22. Nc5 Nb6 23. Nd2 Bf5 24. Bxf5 Nxf5 25. a4 Nd6 26. a5 Na8 27. Rc2 Nc7 28. Nd7 Rbc8 29. Ra1 f6 30. Kf1 Ncb5 31. Ke2 Nxd4+ 32. Kd3 Nxc2 33. Kxc2 Ne4 34. Nxe4 dxe4 35. Nc5 Re7 36. Rd1 Kf7 37. Rd4 f5 38. Rd1 Ke8 39. Nb3 Rd7 40. Rxd7 Kxd7 41. Nc5+ Ke7 42. g4 g6 43. Nb3 Kf6 44. gxf5 Kxf5 45. Nd4+ Ke5 46. Nb3 Rf8 47. Kc3 Rxf2 0-1

[Event "Portuguese-ch U14-20 2022"]
[Site "Fatima"]
[Date "2022.04.12"]
[Round "4.34"]
[White "Caturra, Rafael Dias"]
[Black "Camacho, Filipa Fernandes Bri"]
[Result "0-1"]
[ECO "A34"]
[WhiteElo "1086"]
[BlackElo "1467"]
[Annotator "NA RC"]
[PlyCount "68"]
[EventDate "2022.04.10"]
[EventType "swiss"]
[EventCountry "POR"]
[SourceTitle "playchess.com"]
[Source "ChessBase"]
[SourceQuality "1"]
[TimeControl "5400+30"]

1. c4 c5 2. Nc3 e6 3. Nf3 Nf6 4. g3 Be7 5. Bg2 O-O 6. O-O Nc6 7. d4 cxd4 8. Nxd4 a6 9. b3 Bc5 10. Nf3 Ne7 11. Qc2 Qc7 12. Bb2 d5 13. cxd5 Nexd5 14. Rac1 Nb4 15. Qb1 Be7 16. Nd5 Qd8 17. Nxe7+ Qxe7 18. Ba3 a5 19. Rc4 Re8 20. Ne5 Qd8 21. Bxb4 axb4 22. Rd1 Qa5 23. Nd3 Nd5 24. Bxd5 exd5 25. Rd4 Qxa2 26. Qxa2 Rxa2 27. e3 Ra3 28. Rxb4 d4 29. Rxd4 h5 30. Nc5 Kh7 31. Rd8 Bg4 32. Rxe8 Bxd1 33. Rb8 Bf3 34. h4 Ra1+ 0-1

[Event "Portuguese-ch U14-20 2022"]
[Site "Fatima"]
[Date "2022.04.12"]
[Round "4.37"]
[White "Cabete, Manuel"]
[Black "Mourao, Martim Oliveira"]
[Result "1-0"]
[ECO "C66"]
[WhiteElo "1233"]
[BlackElo "1110"]
[Annotator "NA RC"]
[PlyCount "85"]
[EventDate "2022.04.10"]
[EventType "swiss"]
[EventCountry "POR"]
[SourceTitle "playchess.com"]
[Source "ChessBase"]
[SourceQuality "1"]
[TimeControl "5400+30"]

1. e4 e5 2. Nf3 Nc6 3. Nc3 Nf6 4. Bb5 d6 5. d4 Bd7 6. O-O Be7 7. dxe5 Nxe5 8. Nxe5 dxe5 9. Qe2 a6 10. Bxd7+ Qxd7 11. Bg5 O-O 12. Bxf6 Bxf6 13. Nd5 Bd8 14. Rad1 Qe6 15. Rd3 c6 16. Ne3 Bf6 17. b3 g6 18. Rfd1 Rad8 19. h3 Rfe8 20. Ng4 Rxd3 21. Qxd3 Bg5 22. Qd7 Rd8 23. Qxd8+ Bxd8 24. Rxd8+ Kg7 25. Kf1 Qe7 26. Rd1 Qb4 27. Rd8 Qxe4 28. Rg8+ Kxg8 29. Nf6+ Kg7 30. Nxe4 f5 31. Nd6 b5 32. b4 Kf8 33. Ke2 Ke7 34. Nb7 e4 35. Ke3 g5 36. Nc5 Kd6 37. Nxe4+ fxe4 38. Kxe4 Ke6 39. g4 h6 40. f4 gxf4 41. Kxf4 Kf6 42. h4 Kg6 43. g5 1-0

[Event "Portuguese-ch U14-20 2022"]
[Site "Fatima"]
[Date "2022.04.12"]
[Round "4.38"]
[White "Fernandes, Tiago Joao Carneiro"]
[Black "Cordeiro, Joao Pedro Pereira"]
[Result "0-1"]
[ECO "C54"]
[WhiteElo "1336"]
[BlackElo "1178"]
[Annotator "NA RC"]
[PlyCount "146"]
[EventDate "2022.04.10"]
[EventType "swiss"]
[EventCountry "POR"]
[SourceTitle "playchess.com"]
[Source "ChessBase"]
[SourceQuality "1"]
[TimeControl "5400+30"]

1. e4 e5 2. Nf3 Nc6 3. Bc4 Bc5 4. c3 Nf6 5. d3 h6 6. Bb3 O-O 7. Nbd2 d6 8. Nf1 Be6 9. Bc2 d5 10. Qe2 Ng4 11. Ne3 dxe4 12. dxe4 Qd7 13. O-O a6 14. h3 Nxe3 15. Bxe3 Qe7 16. a4 Bxe3 17. Qxe3 Bc4 18. Rfd1 Rfd8 19. Nd2 Be6 20. a5 Rd7 21. b4 Rad8 22. Qe2 Qg5 23. Nf3 Rxd1+ 24. Rxd1 Rxd1+ 25. Qxd1 Qe7 26. Qe2 f6 27. Nd2 Na7 28. Ba4 Bd7 29. Qc4+ Be6 30. Qd3 Qd6 31. Qe3 Nc8 32. Kh2 Bd7 33. Nc4 Qe7 34. Bxd7 Qxd7 35. Qc5 Qe7 36. Qd5+ Qf7 37. Ne3 Qxd5 38. Nxd5 c6 39. Nb6 Nxb6 40. axb6 Kf7 41. Kg3 Ke6 42. c4 c5 43. bxc5 Kd7 44. f4 Kc6 45. f5 Kxc5 46. Kh4 a5 47. Kh5 a4 48. Kg6 a3 49. Kxg7 a2 50. Kxf6 a1=Q 51. Ke7 Qd4 52. f6 Qd6+ 53. Kf7 Qd7+ 54. Kg8 Kd4 55. f7 Qe6 56. Kg7 Qe7 57. g4 Kxe4 58. Kg8 Kd4 59. f8=Q Qxf8+ 60. Kxf8 e4 61. h4 e3 62. Kg7 e2 63. Kxh6 e1=Q 64. h5 Qe6+ 65. Kg5 Qg8+ 66. Kh4 Qxc4 67. h6 Qg8 68. g5 Qg6 69. Kg4 Kc5 70. Kf4 Kxb6 71. h7 Qxh7 72. Ke5 Qg7+ 73. Kf5 Kc5 0-1

[Event "Portuguese-ch U14-20 2022"]
[Site "Fatima"]
[Date "2022.04.12"]
[Round "4.39"]
[White "Mendes, Simao Pedro Garcia"]
[Black "Cabral, Guilherme"]
[Result "1/2-1/2"]
[ECO "D53"]
[WhiteElo "1147"]
[BlackElo "1210"]
[Annotator "NA RC"]
[PlyCount "77"]
[EventDate "2022.04.10"]
[EventType "swiss"]
[EventCountry "POR"]
[SourceTitle "playchess.com"]
[Source "ChessBase"]
[SourceQuality "1"]
[TimeControl "5400+30"]

1. d4 d5 2. c4 e6 3. Nc3 Nf6 4. Bg5 Be7 5. cxd5 Nxd5 6. Bxe7 Qxe7 7. Nxd5 exd5 8. e3 O-O 9. Bd3 Nd7 10. Nf3 Nf6 11. h3 b6 12. O-O Bb7 13. Rc1 Rac8 14. Qe2 c5 15. b3 h6 16. Ba6 cxd4 17. Nxd4 Rxc1 18. Rxc1 Qa3 19. Rc7 Bxa6 20. Rxa7 Bxe2 21. Rxa3 Bd3 22. Ra7 Rc8 23. Rb7 b5 24. Nxb5 Bxb5 25. Rxb5 Rc1+ 26. Kh2 Rc2 27. a4 Rxf2 28. a5 Ra2 29. b4 Kf8 30. Rb6 Ra4 31. a6 Nd7 32. Rb7 Rxa6 33. Rxd7 Rb6 34. Rxd5 Rxb4 35. Kg3 Ke7 36. Ra5 Re4 37. Kf3 Re6 38. g4 Kf6 39. h4 1/2-1/2